Workbook

Sheet Accueil
B2: 2 | D2: 0 | F2: 1 | H2: Jeu d'entreprise
H4: Vous pouvez exercer vos talents de gestionnaire sur ce programme de simulation financière.
H7: Vous venez de créer votre ordinateur et il vous faut le commercialiser en série. Et surtout le vendre, malgré une terrible concurrence !
AA10: 2
H11: Vous disposez de 50 ouvriers au départ et d'une somme de 1000.- unités. La partie se déroule en 12 mois, c'est-à-dire 12 coups.
H14: De 2 à 4 joueurs peuvent participer : le plus riche en fin d'année a gagné, bien sûr !
J18: Ecivez ici le nom de votre entreprise :
A19: Chaque mois le chef d'entreprise doit prendre 5 décisions capitales : | G19: Marche à suivre (pdf)
B20: 1) Déterminer le nombre d'employés qu'il embauche ou qu'il licencie. | J20: Entreprise no 1 | K20: Cheetha
B21: 2) Déterminer la quantité de marchandise à acheter en fonction de ses possibilités de production. | J21: Entreprise no 2
B22: 3) Engager des fonds dans la publicité pour augmenter ses parts de marché. | J22: Entreprise no 3
B23: 4) Investir dans la recherche pour améliorer sa productivité et pour se protéger contre l'obsolescence. | J23: Entreprise no 4
B24: Placer sur le marché financier ses excédents de liquidités.
B25: 5) Fixer le prix de vente de ses ordinateurs en fonction du marché et des coûts de fabrication.
A27: Rôle des icônes dans le jeu : | E27: passer au mois suivant
H28: Consulter la comptabilité
B29: obtenir des renseignements
F31: Voir les graphiques
D32: Valider | I32: Recommencer une nouvelle partie
F33: Cacher les graphiques
C35: Cliquer ici pour une nouvelle partie ! | J35: Description détaillée du jeu
H36: Lire la presse | J36: Feuille de route
J37: Documents .pdf
E40: Retour ici grâce à la fenêtre du bureau du patron !
K41: Version | L41: 18 - 20.10.12

Sheet Bureau Direction
F1: ="Entreprise " & VLOOKUP(AA9,AE21:AH24,2) -> Entreprise Cheetha | AA1: col.27 | AB1: Echéance version évaluation | AE1: col.31 | AF1: 32 | AG1: 33 | AH1: 34 | AI1: 35 | AJ1: 36 | AK1: 37 | AL1: 38 | AM1: 39 | AN1: 40 | AO1: 41 | AP1: 42 | AQ1: 43 | AR1: 44 | AS1: 45 | AT1: 46 | AU1: 47 | AV1: 48 | AW1: 49 | AX1: 50 | AY1: 51 | AZ1: 52 | BA1: 53 | BB1: 54
AA2: Paramètres globaux | AB2: =IF(TODAY()>DATE(2003,7,14),1,0) -> 1 | AE2: Constantes mensuelles (Datamens)
M3: Etat | O3: Décisions | AE3: 1 | AF3: 2 | AG3: 3 | AH3: 4 | AI3: 5 | AJ3: 6 | AK3: 7 | AL3: 8 | AM3: 9 | AN3: 10 | AO3: 11 | AP3: 12 | AQ3: 13 | AR3: 14 | AX3: 93356.66667 | BA3: 400
E4: Ouvriers à engager | L4: =VLOOKUP(AA$9,Datavar,2) -> 50 | P4: ouvriers | S4: =HLOOKUP(AA12,Datamens,2) -> janvier | V4: =IF(S5=31,"Fin de partie","") ->  | AB4: Presse | AC4: 4 | AE4: janvier | AF4: février | AG4: mars | AH4: avril | AI4: mai | AJ4: juin | AK4: juillet | AL4: août | AM4: septembre | AN4: octobre | AO4: novembre | AP4: décembre | AQ4: décembre | AR4: FIN | AX4: 1534
E5: Matière à acheter | L5: =VLOOKUP(AA$9,Datavar,4) -> 0 | P5: unités | S5: =HLOOKUP(AA12,Datamens,3) -> 1 | AA5: nb entrep. | AC5: ouv o/n | AE5: 1 | AF5: 1 | AG5: 1 | AH5: 1 | AI5: 1 | AJ5: 1 | AK5: 1 | AL5: 1 | AM5: 1 | AN5: 1 | AO5: 1 | AP5: 1 | AQ5: 25
E6: Publicité | L6: Total | M6: =IF(AB7=TRUE,VLOOKUP(AA$9,Datavar,5),"") ->  | P6: fr. | AA6: =AF25 -> 1 | AB6: Vu | AC6: =IF(O8<0,1,0) -> 0 | AD6: Placem
E7: Recherche | M7: =IF(AB8=TRUE,VLOOKUP(AA$9,Datavar,6),"") ->  | P7: fr. | AB7: FALSE | AC7: =IF($O$4>100,IF(VLOOKUP(AA9,Datavar,6)<3599,1,0),0) -> 0 | AE7: Nouvelle année | AG7: 0
E8: Placements | J8: =AC21&" %" -> 12 % | M8: =VLOOKUP(AA$9,Datavar,23) -> 0 | P8: fr. | S8: =AC12 -> 26 | AA8: ent. Active | AB8: FALSE | AC8: =IF($O$4>200,IF(VLOOKUP(AA9,Datavar,6)<6599,1,0),0) -> 0
E9: Prix de vente | L9: =IF(AB9=TRUE,VLOOKUP(AA$9,Datavar,7),"") ->  | P9: unitaire | AA9: 1 | AB9: FALSE | AC9: =SUM(AC6:AC8) -> 0 | AE9: Variables (Datavar)
E10: Evolution de votre marché | L10: =ROUND(((M19-VLOOKUP(AA$9,Datavar,20))*100)/VLOOKUP(AA$9,Datavar,20),1)&" %" -> 0 % | O10: 155 | S10: MO | T10: =IF(AD24=1,"",IF(O5=0,"",(L4+O4)*AA27/O5)) ->  | AE10: Entre-prises no | AF10: Nb. Ouvriers | AG10: Produc- tivité | AH10: Mat. 1ère en stock | AI10: Publicité | AJ10: Recher- che | AK10: Prix de vente | AL10: Prod. En sock | AM10: Liquidité | AN10: Vente du mois | AO10: Marché | AP10: Matière achetée | AQ10: Produc- tion | AR10: Total des ventes | AS10: Recher- che du mois | AT10: Drapeau faillite | AU10: Total achats | AV10: Tarif march. | AW10: Tarif salaires | AX10: Marché précédent | AY10: Commande du mois | AZ10: Pub du mois | BA10: Placements | BB10: Intérêts courus | BC10: Achats du mois | BD10: Prix march | BE10: Prix salaires | BF10: Bén. du mois | BI10: Parts de marché | BV10: Evolution du cash + placements
D11: ="Résultat d'un sondage : à "&AH37&".-" -> Résultat d'un sondage : à 0.- | J11: marché | L11: =IF(M11>=0,"+","") -> + | M11: =IF(O9=0,"",AI37-1) ->  | S11: MP | T11: =IF(AD24=1,"",IF(O5=0,"",AA24)) ->  | AA11: mois actif | AB11: prix max | AC11: Temp. | BH11: ent. | BI11: janvier | BJ11: février | BK11: mars | BL11: avril | BM11: mai | BN11: juin | BO11: juillet | BP11: août | BQ11: septembre | BR11: octobre | BS11: novembre | BT11: décembre | BU11: ent. | BV11: Jan | BW11: Fév | BX11: Mar | BY11: Avr | BZ11: Mai | CA11: Jui | CB11: Jul | CC11: Aou | CD11: Sep | CE11: Oct | CF11: Nov | CG11: Déc
S12: Pub | T12: =IF(AD24=1,"",IF(O5=0,"",O6/O5)) ->  | AA12: 1 | AB12: 124 | AC12: 26 | BH12: 1
S13: R&D | T13: =IF(AD24=1,"",IF(O5=0,"",O7/O5)) ->  | AD13: u(i,x) -> | AE13: 0 | AF13: 1 | AG13: 2 | AH13: 3 | AI13: 4 | AJ13: 5 | AK13: 6 | AL13: 7 | AM13: 8 | AN13: 9 | AO13: 10 | AP13: 11 | AQ13: 12 | AR13: 13 | AS13: 14 | AT13: 15 | AU13: 16 | AV13: 17 | AW13: 18 | AX13: 19 | AY13: 20 | AZ13: 21 | BA13: 22 | BB13: 23 | BC13: 24 | BD13: 25 | BE13: 26 | BF13: 27 | BH13: 2
B14: =IF(VLOOKUP(1,AI21:AW24,AA12+1)=1," v","") ->  | E14: Cash | H14: =IF(AD24=1,VLOOKUP(AA$9,Datavar,9),VLOOKUP(AA$9,Datavar,9)-(O5*AA24)-O6-O7-O8) -> 1000 | M14: =IF(H14<0,IF(VLOOKUP(AA9,Datavar,16)=1," Liquidités insuffisantes","<- Liquidités négatives"),"") ->  | T14: =IF(O5=0,"",SUM(T10:T13)) ->  | AA14: Décision o/n | AB14: graph o/n | AC14: sapin o/n | AD14: chien o/n | AE14: 1 | AF14: 50 | AG14: 5 | AM14: 1000 | AO14: 30 | AV14: 1 | AW14: 1 | AX14: 30 | BC14: 28 | BD14: 30 | BE14: 10 | BF14: =(AN14*AK14)-(AF14*BE14)-(BC14*BD14)-AZ14-AS14 -> -1340 | BH14: 3
B15: =IF(VLOOKUP(2,AI21:AW24,AA12+1)=1," v","") ->  | E15: Productivité | H15: =VLOOKUP(AA$9,Datavar,3) -> 5 | S15: Prix unitaire | AB15: n | AC15: n | AD15: n | AE15: 2 | AF15: 50 | AG15: 5 | AM15: 1000 | AO15: 30 | AV15: 1 | AW15: 1 | AX15: 30 | BC15: 20 | BD15: 30 | BE15: 10 | BF15: =(AN15*AK15)-(AF15*BE15)-(BC15*BD15)-AZ15-AS15 -> -1100 | BH15: 4
B16: =IF(VLOOKUP(3,AI21:AW24,AA12+1)=1," v","") ->  | E16: Stock ordi. | H16: =VLOOKUP(AA$9,Datavar,8) -> 0 | N16: =IF(AQ46>0,"Attention !","Tarifs") -> Tarifs | AA16: travaux | AB16: n | AC16: sablier | AD16: n | AE16: 3 | AF16: 50 | AG16: 5 | AM16: 1000 | AO16: 30 | AV16: 1 | AW16: 1 | AX16: 30 | BC16: 10 | BD16: 30 | BE16: 10 | BF16: =(AN16*AK16)-(AF16*BE16)-(BC16*BD16)-AZ16-AS16 -> -800 | BH16: total
B17: =IF(VLOOKUP(4,AI21:AW24,AA12+1)=1," v","") ->  | E17: Vente Total | H17: =VLOOKUP(AA$9,Datavar,14) -> 0 | N17: ="Prix march. "&AA24&".-" -> Prix march. 30.- | AA17: Validé o/n | AB17: mois val | AC17: Tirlic | AE17: 4 | AF17: 50 | AG17: 5 | AM17: 1000 | AO17: 30 | AV17: 1 | AW17: 1 | AX17: 30 | BC17: 30 | BD17: 30 | BE17: 10 | BF17: =(AN17*AK17)-(AF17*BE17)-(BC17*BD17)-AZ17-AS17 -> -1400
E18: Vente mois | H18: =IF(AD24=0,0,VLOOKUP(AA$9,Datavar,10)) -> 0 | N18: ="Salaires "&AA27&".-" -> Salaires 10.- | AA18: 0 | AB18: 0 | AC18: 50 | AD18: Moyennes | AE18: 5 | AI18: =MAX(AI14:AI17) -> 0 | AK18: =SUM(AK14:AK17)/AF25 -> 0 | AX18: 30
A19: 115 | M19: =VLOOKUP(AA9,Datavar,11) -> 30 | AJ19: Mois validé
A20: zoom | AA20: % du PV | AB20: % pub | AC20: Taux | AJ20: 1 | AK20: 2 | AL20: 3 | AM20: 4 | AN20: 5 | AO20: 6 | AP20: 7 | AQ20: 8 | AR20: 9 | AS20: 10 | AT20: 11 | AU20: 12 | AV20: 13 | AW20: 14 | AY20: Résultats
A21: Réglage | AA21: =IF(AD22="oui",(VLOOKUP(AG37,AZ28:BA35,2)),(VLOOKUP(AG37,AM28:AN39,2))*AP37) -> 0 | AB21: =VLOOKUP(AT36,AT28:AU35,2)+AB22 -> 0.9 | AC21: 12 | AE21: 1 | AF21: =Accueil!$K20 -> Cheetha | AI21: 1 | AV21: 1 | AW21: 1 | AY21: 1 | AZ21: 2 | BA21: 3 | BB21: 4
AA22: bonus pub | AB22: =VLOOKUP(AA9,AR28:AW31,6) -> 0 | AC22: version F | AD22: =IF(Accueil!F2=1,"oui","non") -> oui | AE22: 2 | AF22: =Accueil!$K21 -> 0 | AI22: 2 | AV22: 1 | AW22: 1 | AX22: Cash | AY22: =AM14 -> 1000 | AZ22: =AM15 -> 1000 | BA22: =AM16 -> 1000 | BB22: =AM17 -> 1000
K23: Smak | U23: =IF(H14<0,"Pas possible !",IF(L4+O4<-2,"Pas possible !",IF(AC9>0,"Pas possible !",""))) ->  | AA23: Prix march | AC23: comment | AD23: Vali/mois | AE23: 3 | AF23: =Accueil!$K22 -> 0 | AI23: 3 | AV23: 1 | AW23: 1 | AX23: Placements | AY23: =BA14 -> 0 | AZ23: =BA15 -> 0 | BA23: =BA16 -> 0 | BB23: =BA17 -> 0
U24: =VLOOKUP(AA30,AB49:AC54,2) ->  | AA24: =MIN(AQ43:AQ44) -> 30 | AB24: 1 | AD24: =IF(AA12>13,1,VLOOKUP(AA9,AI21:AV24,AA12+1)) -> 0 | AE24: 4 | AF24: =Accueil!$K23 -> 0 | AI24: 4 | AV24: 1 | AW24: 1 | AX24: Intérêts | AY24: =BB14 -> 0 | AZ24: =BB15 -> 0 | BA24: =BB16 -> 0 | BB24: =BB17 -> 0
AB25: 2 | AF25: =IF(COUNT(AK14:AK17)<1,1,COUNT(AK14:AK17)) -> 1 | AX25: Départ | AY25: 1000 | AZ25: 1000 | BA25: 1000 | BB25: 1000
AA26: Prix sal. | AB26: 3 | AO26: Tirage 1 et 2 | AX26: Total | AY26: =SUM(AY22:AY24)-AY25 -> 0 | AZ26: =SUM(AZ22:AZ24)-AZ25 -> 0 | BA26: =SUM(BA22:BA24)-BA25 -> 0 | BB26: =SUM(BB22:BB24)-BB25 -> 0
U27: Prêt pour jouer | AA27: =MAX(AR43:AR44) -> 10 | AB27: 4 | AJ27: Tranches PV | AO27: 6 | AP27: 3 | AR27: Tranches pub | AV27: bonus | AW27: si 1 ent. | AY27: Fonctions du prix de vente
H28: VRAI | I28: VRAI | AB28: 5 | AJ28: 0 | AM28: 0 | AN28: 1.75 | AO28: 75 | AR28: 1 | AS28: 0 | AT28: =AS28*$AT$37 -> 0 | AU28: 0.9 | AV28: 0.05 | AW28: =IF($AA$12=1,0,IF($AA$6=1,0,AV28)) -> 0 | AZ28: 0 | BA28: 0
AA29: Tuile | AJ29: 1 | AK29: =23+AO27 -> 29 | AL29: =$S$8 -> 26 | AM29: =AK29+AL29 -> 55 | AN29: 1.66 | AO29: 66.66 | AR29: 2 | AS29: 4 | AT29: 4 | AU29: 0.97 | AV29: 0.05 | AW29: =IF($AA$12=1,0,IF($AA$6=1,0,AV29)) -> 0 | AZ29: 1 | BA29: 1.75
AA30: 0 | AB30: Décision | AC30: Test 1 | AD30: Test 2 | AE30: Test 3 | AF30: Validation | AG30: Valeurs à enregistrer | AJ30: 2 | AK30: =43+AP27 -> 46 | AL30: =$S$8 -> 26 | AM30: =AK30+AL30 -> 72 | AN30: 1.5 | AO30: 50 | AR30: 3 | AS30: 5 | AT30: 5 | AU30: 1 | AV30: 0.05 | AW30: =IF($AA$12=1,0,IF($AA$6=1,0,AV30)) -> 0 | AZ30: =50+$AP$27 -> 53 | BA30: =($AG$37*-0.016)+2.6+($AC$12/250) -> 2.704
AJ31: 3 | AK31: =53 +AO27 -> 59 | AL31: 26 | AM31: 85 | AN31: 1.25 | AO31: 25 | AR31: 4 | AS31: 10 | AT31: 10 | AU31: 1.12 | AV31: 0.05 | AW31: =IF($AA$12=1,0,IF($AA$6=1,0,AV31)) -> 0 | AZ31: =100+$AO$27 -> 106 | BA31: 1
AA32: Test décisions | AJ32: 4 | AK32: =63+AP27 -> 66 | AL32: 26 | AM32: 92 | AN32: 1.1 | AO32: 10 | AR32: 5 | AS32: 20 | AT32: 20 | AU32: 1.25 | AZ32: =114+$AP$27 -> 117 | BA32: =($AG$37*-0.0058)+1.56+($AC$12/250) -> 1.664
AA33: Ouvriers | AB33: =O4 -> 0 | AC33: 1 | AD33: 1 | AE33: 1 | AF33: =SUM(AC33:AE33) -> 3 | AG33: =IF(AF33=3,AB33,0) -> 0 | AJ33: 5 | AK33: =78+AO27 -> 84 | AL33: 26 | AM33: 110 | AN33: 1 | AO33: 0 | AR33: 6 | AS33: 30 | AT33: 30 | AU33: 1.4 | AZ33: 260 | BA33: 0.1
AA34: Mat à acheter | AB34: =O5 -> 0 | AC34: 1 | AD34: 1 | AE34: 1 | AF34: 3 | AG34: 0 | AJ34: 6 | AK34: =93+AP27 -> 96 | AL34: 26 | AM34: 122 | AN34: 0.9 | AO34: 10 | AR34: 7 | AS34: 40 | AT34: 40 | AU34: 1.45 | AZ34: 300 | BA34: 0
AA35: Publicité | AB35: =O6 -> 0 | AC35: 1 | AD35: 1 | AE35: 1 | AF35: 3 | AG35: 0 | AJ35: 7 | AK35: =109+AO27 -> 115 | AL35: 26 | AM35: 141 | AN35: 0.8 | AO35: 20 | AR35: 8 | AS35: 60 | AT35: 60 | AU35: 1.5 | BA35: 0
AA36: Recherche | AB36: =O7 -> 0 | AC36: 1 | AD36: 1 | AE36: 1 | AF36: 3 | AG36: 0 | AH36: Pour sondage | AJ36: 8 | AK36: =128+AP27 -> 131 | AL36: 26 | AM36: 157 | AN36: 0.66 | AO36: 33 | AP36: =AG37 -> 0 | AR36: Publicité : | AT36: =AG35 -> 0
AA37: PV | AB37: =O9 -> 0 | AC37: 1 | AD37: 1 | AE37: 1 | AF37: 3 | AG37: 0 | AH37: =FLOOR(AG37,5) -> 0 | AI37: =IF(AD22="oui",(VLOOKUP(AH37,AZ41:BA48,2)),(VLOOKUP(AH37,AM28:AN39,2))*AP37) -> 0 | AJ37: 9 | AK37: =163+AO27 -> 169 | AL37: 26 | AM37: =AK37+AL38 -> 195 | AN37: 0.5 | AO37: 50 | AP37: =IF(AA12=1,1,IF(AA6=1,1,IF(AG37>AK18,0.97,1))) -> 1 | AR37: achats | AT37: =IF($O$5=0,1,$O$5) -> 1 | AY37: Version avec fonction pour PV
A38: © Y. Péguiron - HEP VD - déc. 2008 | AA38: Placement | AB38: =O8 -> 0 | AC38: 1 | AD38: 1 | AE38: 1 | AF38: 3 | AG38: 0 | AJ38: 10 | AK38: =188+AP27 -> 191 | AL38: 26 | AM38: =AK38+AL38 -> 217 | AN38: 0.2 | AO38: 80 | AP38: 1 ou 0.97
AG39: =SUM(AG33:AG38) -> 0 | AJ39: 11 | AM39: 250 | AN39: 0 | AO39: 100
AB40: Commentaires | AY40: Version pour sondage
AB41: 0 | AJ41: Tarifs | AP41: Tarifs provisoires | AZ41: 0 | BA41: 0
AB42: 1 | AC42: Réservée pour test Cash | AH42: U23 | AK42: March. | AL42: Salaires | AQ42: March. | AR42: Salaires | AS42: Tarif | AZ42: 1 | BA42: 1.75
AB43: 2 | AC43: Tuile | AH43: U24 | AJ43: 0 | AK43: 96 | AL43: 68 | AM43: <- seuils tirés au sort au début | AP43: du mois | AQ43: =IF(AG34<599,IF(AG34<AK43,30,IF(AG34<AK43+150,25,20)),15) -> 30 | AR43: =IF(AG33<AL43,10,IF(AG33<AL43+100,15,18)) -> 10 | AS43: =IF(AA24=30,1,IF(AA24=28,2,3)) -> 1 | AT43: =IF(AA27=10,1,IF(AA27=15,2,3)) -> 1 | AZ43: =50+$AP$27 -> 53 | BA43: =($AH$37*-0.016)+2.6+($AC$12/250) -> 2.704
AB44: 3 | AC44: Aller consulter la presse | AH44: U25 | AJ44: 1 | AK44: 30 | AL44: 10 | AP44: ancien | AQ44: =VLOOKUP(VLOOKUP($AA$9,Datavar,18),Tarif,2) -> 30 | AR44: =VLOOKUP(VLOOKUP($AA$9,Datavar,19),Tarif,3) -> 10 | AZ44: =100+$AO$27 -> 106 | BA44: 1
AB45: 4 | AC45: Géré depuis macro (licenciement) | AH45: U26 | AJ45: 2 | AK45: 25 | AL45: 15 | AP45: Alerte : | AQ45: =IF(AA24=30,0,1) -> 0 | AR45: =IF(AA27=10,0,1) -> 0 | AZ45: =114+$AP$27 -> 117 | BA45: =($AH$37*-0.0058)+1.56+($AC$12/250) -> 1.664
AB46: 5 | AC46: Joueur ou date suivant | AH46: U27 | AJ46: 3 | AK46: 20 | AL46: 18 | AM46: seuil + 100 | AQ46: =SUM(AQ45:AR45) -> 0 | AZ46: 260 | BA46: 0.1
AJ47: 4 | AK47: 15 | AL47: plus de 600 | AZ47: 300 | BA47: 0
AC48: Tuile | BA48: 0
AB49: 0
AB50: 1 | AC50: Nouvelles normes de sécurité !
AB51: 2 | AC51: Un robot est hors d'usage !
AB52: 3 | AC52: Une technique est abandonnée !
AB53: 4 | AC53: Réduction du temps de travail !
AB54: 5 | AC54: Un atelier a été incendié !

Sheet Information
AB7: FALSE
AB8: FALSE
N9: 0 | AB9: FALSE
L15: Evolution du marché en fonction des prix de vente | AD15: n
B16: zoom | L16: (cliquez sur le schéma pour l'agrandir)
B17: 90
U25: WOU WOUH... WOOH 100 - 113

Sheet Comptabilité
A1: ='Bureau Direction'!AA12 -> 1 | B1: ='Bureau Direction'!AA9 -> 1
L2: =VLOOKUP(AB4,'Bureau Direction'!$AE$21:$AH$24,2) -> Cheetha | X2: Mois pour le titre | AA2: Variable GLOB
X3: 1 | Y3: janvier | Z3: =IF($AB$3<X3,"",Y3) -> janvier | AA3: Actif mois /firm | AB3: =A1 -> 1 | AC3: =B1 -> 1
D4: Compte d'exploitation en | L4: =VLOOKUP(AB5,X3:Y15,2) -> janvier | X4: 2 | Y4: février | Z4: =IF($AB$3<X4,"",Y4) ->  | AA4: Firm compta | AB4: 1
X5: 3 | Y5: mars | Z5: =IF($AB$3<X5,"",Y5) ->  | AA5: Mois compta | AB5: 1
D6: CHARGES | K6: PRODUITS | X6: 4 | Y6: avril | AA6: Achats
D7: Achat | E7: =AB6 -> 0 | F7: x | G7: =AB7 -> 0 | H7: .- | I7: =E7*G7 -> 0 | K7: Chiffre d'affaires | L7: =AB12 -> 0 | M7: x | N7: =AB13 -> 0 | O7: .- | P7: =L7*N7 -> 0 | X7: 5 | Y7: mai | AA7: Prix achat
A8: Production | D8: =IF(I8="","","Marge brut") ->  | I8: =IF(P7>I7,P7-I7,"") ->  | K8: =IF(P8="","","Perte brute") ->  | P8: =IF(I7>P7,I7-P7,"") ->  | X8: 6 | Y8: juin | AA8: Salaires
A9: =AB14 -> 0 | I9: =SUM(I7:I8) -> 0 | P9: =SUM(P7:P8) -> 0 | X9: 7 | Y9: juillet | AA9: Prix salaire
A10: PR : | B10: =I7+SUM(I12:I14) -> 0 | X10: 8 | Y10: août | AA10: Pub
D11: =K8 ->  | I11: =P8 ->  | K11: =D8 ->  | P11: =IF(I8="",0,I8) -> 0 | X11: 9 | Y11: septembre | Z11: =IF($AB$3<X11,"",Y11) ->  | AA11: Frais rech
A12: BE : | B12: =HLOOKUP(AB4,'Bureau Direction'!AY21:BB26,6) -> 0 | D12: Salaires | E12: =AB8 -> 0 | F12: x | G12: =AB9 -> 0 | H12: .- | I12: =E12*G12 -> 0 | X12: 10 | Y12: octobre | Z12: =IF($AB$3<X12,"",Y12) ->  | AA12: Ventes
D13: Publicité | I13: =AB10 -> 0 | X13: 11 | Y13: novembre | Z13: =IF($AB$3<X13,"",Y13) ->  | AA13: Prix vente
D14: Frais de recherche | I14: =AB11 -> 0 | X14: 12 | Y14: décembre | Z14: =IF($AB$3<X14,"",Y14) ->  | AA14: Production
D15: =IF(I15="","","Marge net du mois") ->  | I15: =IF(P11>SUM(I12:I14),P11-SUM(I12:I14),"") ->  | K15: =IF(P15="","","Perte du mois") ->  | P15: =IF(SUM(I12:I14)>P11,SUM(I12:I14)-P11,"") ->  | X15: 13 | Y15: F i n | Z15: =IF($AB$3<X15,"",Y15) -> 
I16: =SUM(I12:I15) -> 0 | P16: =SUM(P11:P15) -> 0
D17: Placements : | G17: =(VLOOKUP($B$1,Datavar,23)) -> 0 | K17: Hors exploitation Intérêts courus : | P17: =(VLOOKUP($B$1,Datavar,24)) -> 0
D19: Prix de revient unitaire de la production du mois : | L19: =(I7+SUM(I12:I14))/AB14 -> 

Sheet Presse
O1: Entreprise no | P1: ='Bureau Direction'!AA9 -> 1 | Q1: Nom : | R1: =VLOOKUP(P1,'Bureau Direction'!AE20:AH24,2) -> Cheetha | S1: Nb Employés | T1: ='Bureau Direction'!L4 -> 50 | Y1: Faillite : | Z1: =VLOOKUP(P1,Datavar,16) -> 0 | AA1: =RANK(AC1,$AC$1:$AC$4) -> 1 | AB1: =C28 -> Cheetha | AC1: =C29 -> 0 | AD1: =C30 -> 0
I2: Sommaire | O2: Commentaire no | P2: ='Bureau Direction'!AC4 -> 4 | Q2: 4 | Y2: ='Bureau Direction'!H14 -> 1000 | AA2: =RANK(AC2,$AC$1:$AC$4) -> 1 | AB2: =E28 -> 0 | AC2: =E29 -> 0 | AD2: =E30 -> 0 | AI2: Journal, groupement des lignes
O3: Articles | P3: Innovation | Q3: Stock | R3: Résultat | S3: Intro | T3: Tarif2 | U3: Fourchette | V3: Tuile | AA3: =RANK(AC3,$AC$1:$AC$4) -> 1 | AB3: =G28 -> 0 | AC3: =G29 -> 0 | AD3: =G30 -> 0
O4: largeur 21 svp | P4: 1 | Q4: 2 | R4: 3 | S4: 4 | T4: 5 | U4: 6 | V4: 7 | W4: 8 | X4: 9 | Y4: 10 | AA4: =RANK(AC4,$AC$1:$AC$4) -> 1 | AB4: =I28 -> 0 | AC4: =I29 -> 0 | AD4: =I30 -> 0
O5: 0 | P5: L'innovation | Q5: Les stock de marchandises | R5: =AC12 -> Cheetha | S5: Smak - Money | T5: Marché du travail | U5: L'offre et la demande | V5: Malheurs des industriels | W5: Licenciements | X5: Le chien | Y5: ="Faillite de "&R1 -> Faillite de Cheetha | Z5: 1 | AA5: =AC12 -> Cheetha
E6: 1 | O6: 1 | P6: Le moteur de la croissance | Q6: Faut-il des réserves ? | R6: La meilleure entreprise d'ordinateurs | S6: Jeu d'entreprise | T6: La pénurie | U6: ainsi que conjoncture influencent les prix | V6: Vicissitudes de la productivité | W6: ="chez " & R1 -> chez Cheetha | X6: du patron | Y6: =T1 &" chômeurs techniques" -> 50 chômeurs techniques | AC6: Battu o/n
G7: 2 | O7: 2 | P7: L'innovation technologique exige | Q7: La mode des flux tendus | R7: Avec un cash flow (bénéfice | S7: Pour profiter pleinement des | T7: La forte demande de personnel | U7: L'offre et la demande sont les | V7: Lorsque la productivité augmente | W7: Malgré le développement du secteur | X7: Ce chien a du flair…et de l'intuition ! | Y7: Depuis quelques semaines déjà | AA7: Record : | AB7: =Palmarès!U4 -> 292215 | AC7: =IF(AD12>AB7,"o","n") -> n | AI7: =VLOOKUP(2,Articles,$P$2+1) -> Pour profiter pleinement des | AJ7: =VLOOKUP(15,Articles,$P$2+1) -> Si vous voulez jouer avec SMAK | AK7: =VLOOKUP(28,Articles,$P$2+1) -> Nous vous souhaitons beau-
C8: =VLOOKUP(0,Articles,P2+1) -> Smak - Money | G8: =AK7&AK8&AK9&AK10&AK11&AK12&AK13&AK14&AK15&AK16&AK17&AK18&AK19 -> Nous vous souhaitons beau- coup de plaisir avec Smak-money; armez-vous d'une calculette et bonne chance ! | I8: Palmarès | O8: 3 | P8: souvent, en plus des investis-- sements | Q8: pousse | R8: avant impôts et amortissements) | S8: potentialités du programme | T8: hyper-qualifié entraîne une | U8: principales grandeurs servant | V8: son coefficient (le nombre d'ouvriers pour faire un ordinateur) diminue. | W8: de l'informatique certains | X8: Caché sous le bureau du patron, il sort si | Y8: les milieux économiques régio- | AB8: =Palmarès!V4 -> 3240 | AI8: =VLOOKUP(3,Articles,$P$2+1) -> potentialités du programme | AJ8: =VLOOKUP(16,Articles,$P$2+1) -> comme adversaire virtuel, voici ce que vous | AK8: =VLOOKUP(29,Articles,$P$2+1) -> coup de plaisir avec Smak-money;
O9: 4 | P9: en capital, des investissements | Q9: les entrepreneurs à limiter les | R9: =" de "&AD12&".-, l'entreprise" -> de 0.-, l'entreprise | S9: lisez le descriptif | T9: pénurie importante dans les | U9: à déterminer les prix dans | V9: L'idéal est d'arriver le plus vite | W9: fabricants d'ordinateurs | X9: vous jouez avec ses os. | Y9: naux étaient inquiets de la situation | AI9: =VLOOKUP(4,Articles,$P$2+1) -> lisez le descriptif | AJ9: =VLOOKUP(17,Articles,$P$2+1) -> devez faire : | AK9: =VLOOKUP(30,Articles,$P$2+1) -> armez-vous d'une calculette et
C10: =VLOOKUP(1,Articles,P2+1) -> Jeu d'entreprise | O10: 5 | P10: incorporels comme des achats de | Q10: stocks au strict minimum. | S10: "Smakmoney_info". | T10: secteurs techniques. | U10: l'éco- nomie. L'offre, c'est la volonté | V10: à 1. | W10: n'hésitent pas à user | X10: Mais pour vous informer, voici quelques | Y10: =" précaire de la fabrique " & R1 -> précaire de la fabrique Cheetha | AA10: Liste classée | AI10: =VLOOKUP(5,Articles,$P$2+1) -> "Smakmoney_info". | AJ10: =VLOOKUP(18,Articles,$P$2+1) -> 1)Dans la page d'accueil, sélectionnez | AK10: =VLOOKUP(31,Articles,$P$2+1) -> bonne chance !
C11: =AI7&AI8&AI9&AI10&AI11&AI12&AI13&AI14&AI15&AI16&AI17&AI18&AI19 -> Pour profiter pleinement des potentialités du programme lisez le descriptif "Smakmoney_info". Vous pouvez le consulter depuis la page d'accueil en cliquant sur le lien en bas à droite. Ce document est au format "pdf", vous pouvez l'imprimer facilement. Imprimez également une feuille de route par joueur; ce document à compléter en cours de jeu est très utile... | E11: =AJ7&AJ8&AJ9&AJ10&AJ11&AJ12&AJ13&AJ14&AJ15&AJ16&AJ17&AJ18&AJ19 -> Si vous voulez jouer avec SMAK comme adversaire virtuel, voici ce que vous devez faire : 1)Dans la page d'accueil, sélectionnez le bouton d'options "Entreprise virtuelle ... " 2)Pendant la partie, chaque mois, vous devrez cliquer sur la cassette-vidéo déposée dans la bibliothèque. pour que l'ordinateur entre automati- quement les décisions de l'entreprise virtuelle "SMAK." | O11: 6 | P11: brevets ou de licences et des | Q11: Cette politique présente des | R11: =AC12&" est numéro 1" -> Cheetha est numéro 1 | S11: Vous pouvez le consulter depuis | T11: Si les employeurs font la | U11: du vendeur d'offrir des biens à des | V11: Chaque fois que vous investissez | W11: du chômage technique, voire à | X11: trucs… | Y11: mais nul n'imaginait une déconfiture | AA11: Ordre | AB11: Place | AC11: Nom | AD11: Cash | AE11: Ordina | AF11: différence | AI11: =VLOOKUP(6,Articles,$P$2+1) -> Vous pouvez le consulter depuis | AJ11: =VLOOKUP(19,Articles,$P$2+1) -> le bouton d'options "Entreprise virtuelle ... " | AK11: =VLOOKUP(32,Articles,$P$2+1) -> 
O12: 7 | P12: dépenses en matière de recherche et de | Q12: dangers lorsque les fournisseurs | R12: dans la production d'ordinateurs. | S12: la page d'accueil en cliquant | T12: grimace, les employés pour | U12: quantités croissantes à des prix | V12: 400.- dans la recherche, | W12: procéder à des licenciements | Y12: aussi soudaine. Un délégué | AA12: 1 | AB12: =MATCH(1,$AA$1:$AA$4,0) -> 1 | AC12: =INDEX(Classe,$AB12,2) -> Cheetha | AD12: =INDEX(Classe,$AB12,3) -> 0 | AE12: =INDEX(Classe,$AB12,4) -> 0 | AF12: =AD12-AD13 ->  | AI12: =VLOOKUP(7,Articles,$P$2+1) -> la page d'accueil en cliquant | AJ12: =VLOOKUP(20,Articles,$P$2+1) -> 2)Pendant la partie, chaque mois, vous devrez cliquer sur la | AK12: =VLOOKUP(33,Articles,$P$2+1) -> 
O13: 8 | P13: développement (R&D). Les dépenses de R&D | Q13: sont dans l'impossibilité, pour | R13: Sur un marché où la concurrence | S13: sur le lien en bas à droite. | T13: leur part profitent bien de la | U13: croissants (et inversement). La | V13: votre efficacité augmente et | W13: sauvages. Les syndicats dénoncent | X13: Le chien, en rentrant à la niche donne des | Y13: syndical de la FTMH interrogé | AA13: 2 | AB13: =MATCH(2,$AA$1:$AA$4,0) ->  | AC13: =INDEX(Classe,AB13,2) ->  | AD13: =INDEX(Classe,$AB13,3) ->  | AE13: =INDEX(Classe,$AB13,4) ->  | AI13: =VLOOKUP(8,Articles,$P$2+1) -> sur le lien en bas à droite. | AJ13: =VLOOKUP(21,Articles,$P$2+1) -> cassette-vidéo | AK13: =VLOOKUP(34,Articles,$P$2+1) -> 
O14: 9 | P14: ne sont souvent pas | Q14: des raisons économiques, | R14: est rude, la région peut être | S14: Ce document est au format "pdf", | T14: situation en obtenant de grosses | U14: demande est la volonté de | V14: votre coefficient diminue de 1. | W14: ces pratiques inadmissibles et | X14: informations sur la zone des prix qui | Y14: hier soir n'hésitait pas à condamner | AA14: 3 | AB14: =MATCH(3,$AA$1:$AA$4,0) ->  | AC14: =INDEX(Classe,AB14,2) ->  | AD14: =INDEX(Classe,$AB14,3) ->  | AE14: =INDEX(Classe,$AB14,4) ->  | AI14: =VLOOKUP(9,Articles,$P$2+1) -> Ce document est au format "pdf", | AJ14: =VLOOKUP(22,Articles,$P$2+1) -> déposée dans la bibliothèque. | AK14: =VLOOKUP(35,Articles,$P$2+1) -> 
O15: 10 | P15: considérées comme des investissements | Q15: sociales ou techniques de | R15: fière de cette entreprise dynamique. | S15: vous pouvez l'imprimer facilement. | T15: augmentation de salaire. | U15: l'acheteur de demander des quan- tités | W15: font appel à plus d'éthique dans | X15: n'influencent pas le marché. | Y15: l'irresponsabilité des | AA15: 4 | AB15: =MATCH(4,$AA$1:$AA$4,0) ->  | AC15: =INDEX(Classe,AB15,2) ->  | AD15: =INDEX(Classe,$AB15,3) ->  | AE15: =INDEX(Classe,$AB15,4) ->  | AI15: =VLOOKUP(10,Articles,$P$2+1) -> vous pouvez l'imprimer facilement. | AJ15: =VLOOKUP(23,Articles,$P$2+1) -> pour que l'ordinateur entre automati- quement les décisions | AK15: =VLOOKUP(36,Articles,$P$2+1) -> 
O16: 11 | P16: au sens comptable du terme et, par | Q16: livrer la marchandise attendue. | R16: Avec une production de | S16: Imprimez également une feuille de | U16: croissantes à des prix décroissants | V16: Si vous n'investissez pas | W16: la branche. Sous le prétexte de | Y16: dirigeants qui pratiquaient une | AI16: =VLOOKUP(11,Articles,$P$2+1) -> Imprimez également une feuille de | AJ16: =VLOOKUP(24,Articles,$P$2+1) -> de l'entreprise virtuelle | AK16: =VLOOKUP(37,Articles,$P$2+1) -> 
O17: 12 | P17: conséquence, contrairement | Q17: La constitution d'un | R17: =" "&AE12&" machines en une année" -> 0 machines en une année | S17: route par joueur; ce document à | U17: (et inversement). | V17: régulièrement vous vous exposez | W17: restructurations certains patrons | X17: Si vous ne souhaitez pas que vos | Y17: gestion désordonnée et | AA17: Date : | AB17: =TODAY() -> 2016-05-04 | AI17: =VLOOKUP(12,Articles,$P$2+1) -> route par joueur; ce document à | AJ17: =VLOOKUP(25,Articles,$P$2+1) -> "SMAK." | AK17: =VLOOKUP(38,Articles,$P$2+1) -> 
O18: 13 | Q18: "stock de sécurité" est donc vivement | R18: =" "&AC12 -> Cheetha | S18: compléter en cours de jeu est | V18: à quelques risques... | W18: gèrent les ressources humaines comme de | X18: adversaires voient votre saisie, cliquez sur le | Y18: sucidaire. | AI18: =VLOOKUP(13,Articles,$P$2+1) -> compléter en cours de jeu est | AJ18: =VLOOKUP(26,Articles,$P$2+1) ->  | AK18: =VLOOKUP(39,Articles,$P$2+1) -> 
O19: 14 | Q19: conseillée, bien que cette pratique induise un coût. | R19: se positionne bien sur le marché mondial. | S19: très utile... | W19: la marchandise. | X19: bouton "Saisie confidentielle" du bureau. | AI19: =VLOOKUP(14,Articles,$P$2+1) -> très utile... | AJ19: =VLOOKUP(27,Articles,$P$2+1) -> 
O20: 15 | P20: aux autres types d'investis- sement, | Q20: Dans ce jeu de simulation, vous | R20: De leur côté, les | S20: Si vous voulez jouer avec SMAK | T20: Un panneau situé derrière le | U20: Dans cette simulation vos prix | V20: Chaque événement fâcheux va | W20: Le | X20: Le prix de la marchandise diminue en | Y20: PERSONNEL AU ABOIS :
O21: 16 | P21: n'entraînent pas de hausse de | Q21: avez intérêt à stocker un peu de | R21: actionnaires peuvent également | S21: comme adversaire virtuel, voici ce que vous | T21: téléphone vous donne l'état | U21: de vente vont influencer directe- | V21: faire augmenter votre coefficient | W21: "turnover" (mobilité du personnel) | X21: fonction de la quantité achetée. Dès 600 | Y21: =" Pour les "&T1&" personnes " -> Pour les 50 personnes
O22: 17 | P22: l'actif du Bilan de l'entreprise. | Q22: matière car, à partir d'un certain | R22: être satisfaits puisque | S22: =" devez faire : " -> devez faire : | T22: des salaires et le prix | U22: ment votre marché potentiel. En | V22: de 1 à 5 points. | W22: est très faible dans cette industrie | X22: unités, le prix minimum de 15.- est atteint. | Y22: touchées par cette faillite, la | AI22: Titres
D23: =P2 -> 4 | G23: reuter | O23: 18 | P23: Néanmoins, les dépenses de R&D | Q23: volume, vos partenaires ne sont | R23: leur entreprise favorite a un | S23: 1)Dans la page d'accueil, sélectionnez | T23: de la matière première. | U23: dessous de environ 100.- (les seuils | V23: Les dépenses de recherches et de | W23: très spécialisée et c'est justement | X23: Lorsque vous entrez un nombre dans la | Y23: situation est dramatique. Toute | AI23: 1. Innovation
O24: 19 | P24: font partie des efforts | Q24: pas sûrs! Certaines commandes | R24: résultat supérieur de | S24: le bouton d'options "Entreprise virtuelle ... " | T24: Ces deux facteurs de | U24: sont déterminés par la conjoncture) | V24: développement vous permettent | W24: dans ces circonstances qu'il | X24: zone de saisie, le tableau près du | Y24: la région est comme frappée de | AI24: 2. Stock
O25: 20 | P25: de l'entreprise pour assurer | Q25: ne pourraient être honorées | R25: =" "&AF12&".- à son concurrent" ->  | S25: 2)Pendant la partie, chaque mois, vous devrez cliquer sur la | T25: production sont également | U25: votre marché va croître de 10 à 75%. | V25: également de faire évoluer votre | W25: faut un grand respect des | X25: téléphone se met à jour. Il en va de même | Y25: stupeur. | AI25: 3. Résultats
O26: 21 | P26: sa croissance. | Q26: qu'à 85 %... | R26: directe | S26: cassette-vidéo | T26: soumis à la loi de l'offre | U26: Au-dessus de 120.- (environ), le | V26: entreprise et de l'agrandir, | W26: personnes qui finalement font | X26: pour le montant des salaires. | Y26: Face à ces licenciements, les | AI26: 4. Introduction
C27: Résultats de l'année | O27: 22 | P27: Dans Smak-money, toutes les | R27: =" "&AC13&"." ->  | S27: déposée dans la bibliothèque. | T27: et de la demande, comme | U27: marché diminue progressivement | V27: pour accueillir de nouveaux employés, | W27: marcher les affaires. Le dialogue | Y27: travailleurs sont totalement | AI27: 5. Salaires
C28: ='Bureau Direction'!AF21 -> Cheetha | E28: ='Bureau Direction'!AF22 -> 0 | G28: ='Bureau Direction'!AF23 -> 0 | I28: ='Bureau Direction'!AF24 -> 0 | O28: 23 | P28: dépenses de R&D sont groupées | R28: Si l'on sait que certaines entreprises | S28: pour que l'ordinateur entre automati- quement les décisions | T28: les prix de vos ordinateurs. | U28: puis s'effondre définitivement ! Vous | V28: par exemple. Vous devez savoir que, pour | W28: n'est cependant pas rompu et les | X28: Pour licencier, il faut entrer un nombre | Y28: démunis sur un marché du | AI28: 6. Prix
A29: Cash flow | C29: =ROUND('Bureau Direction'!AY26,0) -> 0 | E29: =ROUND('Bureau Direction'!AZ26,0) -> 0 | G29: =ROUND('Bureau Direction'!BA26,0) -> 0 | I29: =ROUND('Bureau Direction'!BB26,0) -> 0 | O29: 24 | P29: sous le label "Recherche" et il | R29: du secteur sont accusées de | S29: de l'entreprise virtuelle | U29: trouverez à la page 5 des instru- ctions | V29: engager plus de 100 employés | W29: syndicats ont obtenu que les | X29: négatif. Mais attention aux syndicats ! | Y29: travail où les emplois offerts | AI29: 7. Productivité
A30: Ventes | C30: =ROUND('Bureau Direction'!AR14,0) -> 0 | E30: =ROUND('Bureau Direction'!AR15,0) -> 0 | G30: =ROUND('Bureau Direction'!AR16,0) -> 0 | I30: =ROUND('Bureau Direction'!AR17,0) -> 0 | O30: 25 | P30: faut en tenir compte dans le | R30: pratiquer volontiers le | S30: "SMAK." | U30: un tableau indicatif des seuils. | V30: il faut avoir, au préalable, | W30: =" restructurations chez " & R1 -> restructurations chez Cheetha | Y30: sont quasi inexistants. La | AI30: 8. Licenciements
A31: Rang | C31: =RANK(C29,$AC$1:$AC$4) -> 1 | E31: =RANK(E29,$AC$1:$AC$4) -> 1 | G31: =RANK(G29,$AC$1:$AC$4) -> 1 | I31: =RANK(I29,$AC$1:$AC$4) -> 1 | O31: 26 | P31: calcul du prix de revient. | R31: dumping, on ne peut que se féliciter | V31: investi au moins 3'600.- en recherche. | W31: ne touchent pas plus de | Y31: population et les autorités | AI31: 9. Faillite
O32: 27 | R32: =" du résultat de "&AC12&"." -> du résultat de Cheetha. | W32: =" "&'Bureau Direction'!AC18&"% du personnel visé." -> 50% du personnel visé.
O33: 28 | P33: Les dépenses R&D influencent | Q33: Pour créer du stock, il | R33: ="Le record de cash flow de "&ROUND(AB7,0)&".-" -> Le record de cash flow de 292215.- | S33: Nous vous souhaitons beau- | T33: Lorsque la main d'oeuvre se | U33: La conjoncture a également une | V33: Pour embaucher plus de | X33: Pour les besoins de simulations, il est | Y33: plaçaient tous leur espoirs dans
O34: 29 | P34: la productivité, assurent | Q34: suffit d'acheter plus de | R34: =" avec "&AB8&" ordinateurs" -> avec 3240 ordinateurs | S34: coup de plaisir avec Smak-money; | T34: fera rare, le salaire passera de 10.- | U34: importance déterminante sur les | V34: 200 travailleurs, il faudra avoir investi 6'600.-. | X34: possible de continuer le jeu sur une | Y34: la haute technologie et dans le
O35: 30 | P35: contre des incidents | Q35: matière qu'il n'y a | R35: =IF(AC7="o"," est battu."," n'est pas encore battu.") -> n'est pas encore battu. | S35: armez-vous d'une calculette et | T35: à 15 unités, puis 16.- unités. Inversement, | U35: prix. En cas de récession, les | V35: Cette quatrième décision demande | X35: deuxième année et ainsi de suite… | Y35: développement de l'entreprise
O36: 31 | P36: fâcheux et permettent à | Q36: d'ouvriers pour produire | S36: bonne chance ! | T36: le prix de la marchandise baissera en | U36: prix devront être revus à la | V36: donc un peu d'anticipation… Avec | X36: Pour cela il suffit, le 25 décembre, de | Y36: =" "&R1&"." -> Cheetha.
O37: 32 | P37: l'entreprise de s'agrandir | Q37: des ordinateurs. | R37: =IF(AC7="o"," FELICITATIONS !!!", "Courage...") -> Courage... | T37: fonction de la quantité achetée. Le | U37: baisse. En cas de surchauffe, | V37: plus de 15'000.- de recherche | X37: cliquez sur la boîte "92>" de la bibliothèque. | Y37: Avec un "trou" financier de
O38: 33 | P38: afin d'accueillir un maximum | T38: prix peut descendre à 28.-, voire 25.- unités. | U38: les prix s'envolent. Le | V38: un employé peut produire | Y38: =" "&ABS(Y2)&".- la liquidation de" -> 1000.- la liquidation de
O39: 34 | P39: de personnel. (cf "Productivité" p. 7 | U39: thermo- mètre donne un état de | V39: deux machines ! | Y39: la société est hélas inéluctable.
O40: 35 | P40: de ce journal) | U40: l'éco- nomie pour chaque
O41: 36 | U41: nouvelle partie !
O42: 37
O43: 38
O44: 39
O45: 40
O46: 41
O47: 42
O48: 43

Sheet Palmarès
M1: Nb éléments | N1: =COUNT(N4:N551) -> 11
M2: DATARESUL | T2: DATAPREMIER
D3: Entreprise | F3: Cash flow | G3: Ventes | M3: Firme | N3: Flow | O3: Ordinateurs | P3: Date | S3: Equivalent | T3: Entreprise | U3: Cash flow | V3: Ventes | W3: Date | X3: erreur
D4: =Presse!$AC$12 -> Cheetha | F4: =Presse!$AD$12 -> 0 | G4: =Presse!$AE$12 -> 0 | L4: =RANK(N4,$N$4:$N$551) -> 1 | M4: HEWLEY | N4: 292215 | O4: 3240 | P4: 2003-11-08T19:16:01 | R4: 1 | S4: =MATCH(R4,$L$4:$L$550,0) -> 1 | T4: =INDEX(Dataresul,$S4,1) -> HEWLEY | U4: =INDEX(Dataresul,$S4,2) -> 292215 | V4: =INDEX(Dataresul,$S4,3) -> 3240 | W4: =INDEX(Dataresul,$S4,4) -> 37933.80279 | X4: =IF(ISERROR(T4),0,1) -> 1
L5: =RANK(N5,$N$4:$N$551) -> 4 | M5: COMPELL | N5: 212380 | O5: 4120 | P5: 2002-12-15T18:27:47 | R5: 2 | S5: 11 | T5: =INDEX(Dataresul,$S5,1) -> Cheetah | U5: =INDEX(Dataresul,$S5,2) -> 250226 | V5: =INDEX(Dataresul,$S5,3) -> 4118 | W5: =INDEX(Dataresul,$S5,4) -> 38609.02694 | X5: =IF(ISERROR(T5),0,1) -> 1
L6: =RANK(N6,$N$4:$N$551) -> 11 | M6: Smak | N6: 71862 | O6: 809 | P6: 2002-12-13T23:16:40 | R6: 3 | S6: 10 | T6: Cheetah | U6: 245796 | V6: 2123 | W6: 38579.13209 | X6: 1
D7: Les 20 meilleurs résultats | L7: =RANK(N7,$N$4:$N$551) -> 7 | M7: HEWLEY | N7: 177371 | O7: 1176 | P7: 2002-12-20T22:12:01 | R7: 4 | S7: 2 | T7: COMPELL | U7: 212380 | V7: 4120 | W7: 37605.76929 | X7: 1
C8: 1 | D8: =IF($X4=1,T4,"") -> HEWLEY | E8: =IF($X4=1,U4,"") -> 292215 | F8: =IF($X4=1,V4,"") -> 3240 | G8: =IF($X4=1,W4,"") -> 2003-11-08T19:16:01 | L8: 10 | M8: COMPELL | N8: 138432 | O8: 1687 | P8: 2002-12-22T00:09:37 | R8: 5 | S8: 6 | T8: EPITEC | U8: 203091 | V8: 4020 | W8: 37613.12461 | X8: 1
C9: 2 | D9: =IF($X5=1,T5,"") -> Cheetah | E9: =IF($X5=1,U5,"") -> 250226 | F9: =IF($X5=1,V5,"") -> 4118 | G9: =IF($X5=1,W5,"") -> 2005-09-14T00:38:48 | L9: 5 | M9: EPITEC | N9: 203091 | O9: 4020 | P9: 2002-12-23T02:59:26 | R9: 6 | S9: 9 | T9: Cheetah | U9: 180034 | V9: 2027 | W9: 38355.58479 | X9: 1
C10: 3 | D10: Cheetah | E10: 245796 | F10: 2123 | G10: 2005-08-15T03:10:13 | L10: 8 | M10: HEWLEY | N10: 175021 | O10: 2817 | P10: 2004-01-10T02:49:10 | R10: 7 | S10: 4 | T10: HEWLEY | U10: 177371 | V10: 1176 | W10: 37610.92501 | X10: 1
C11: 4 | D11: COMPELL | E11: 212380 | F11: 4120 | G11: 2002-12-15T18:27:47 | L11: 9 | M11: Cheetah | N11: 165376 | O11: 1786 | P11: 2004-11-09T22:11:17 | R11: 8 | S11: 7 | T11: HEWLEY | U11: 175021 | V11: 2817 | W11: 37996.11748 | X11: 1
C12: 5 | D12: EPITEC | E12: 203091 | F12: 4020 | G12: 2002-12-23T02:59:26 | L12: 6 | M12: Cheetah | N12: 180034 | O12: 2027 | P12: 2005-01-03T14:02:06 | R12: 9 | S12: 8 | T12: Cheetah | U12: 165376 | V12: 1786 | W12: 38300.9245 | X12: 1
C13: 6 | D13: Cheetah | E13: 180034 | F13: 2027 | G13: 2005-01-03T14:02:06 | L13: 3 | M13: Cheetah | N13: 245796 | O13: 2123 | P13: 2005-08-15T03:10:13 | R13: 10 | S13: 5 | T13: COMPELL | U13: 138432 | V13: 1687 | W13: 37612.00668 | X13: 1
C14: 7 | D14: HEWLEY | E14: 177371 | F14: 1176 | G14: 2002-12-20T22:12:01 | L14: 2 | M14: Cheetah | N14: 250226 | O14: 4118 | P14: 2005-09-14T00:38:48 | R14: 11 | S14: 3 | T14: Smak | U14: 71862 | V14: 809 | W14: 37603.96991 | X14: 1
C15: 8 | D15: HEWLEY | E15: 175021 | F15: 2817 | G15: 2004-01-10T02:49:10 | R15: 12 | X15: 0
C16: 9 | D16: Cheetah | E16: 165376 | F16: 1786 | G16: 2004-11-09T22:11:17 | R16: 13 | X16: 0
C17: 10 | D17: COMPELL | E17: 138432 | F17: 1687 | G17: 2002-12-22T00:09:37 | R17: 14 | X17: 0
C18: 11 | D18: Smak | E18: 71862 | F18: 809 | G18: 2002-12-13T23:16:40 | R18: 15 | X18: 0
C19: 12 | R19: 16 | X19: 0
C20: 13 | R20: 17 | X20: 0
C21: 14 | R21: 18 | X21: 0
C22: 15 | R22: 19 | X22: 0
C23: 16 | R23: 20 | X23: 0
C24: 17
C25: 18
C26: 19
C27: 20
I29: Effacer le dernier résultat entré
L71: =RANK(N71,$N$4:$N$551) -> 
L135: =RANK(N135,$N$4:$N$551) -> 
L199: =RANK(N199,$N$4:$N$551) -> 
L263: =RANK(N263,$N$4:$N$551) -> 
L327: =RANK(N327,$N$4:$N$551) -> 
L391: =RANK(N391,$N$4:$N$551) -> 
L455: =RANK(N455,$N$4:$N$551) -> 
L519: =RANK(N519,$N$4:$N$551) -> 

Sheet Calculs
A1: ='Bureau Direction'!F1 & " - Production possible" -> Entreprise Cheetha - Production possible
B2: Liquidités yc dép. du mois | C2: Matière + publicité unitaires
A3: Achats | B3: ='Bureau Direction'!H14 -> 1000 | C3: / | D3: ='Bureau Direction'!AA24+VLOOKUP(Calculs!L19,Calculs!K20:L25,2) -> 50 | E3: = | F3: =INT(B3/D3) -> 20 | G3: achats matière
A4: Publicité unitaire désirée :
B5: Productivité : | D5: ='Bureau Direction'!H15 -> 5 | F5: =F3*D5 -> 100 | G5: employés nécessaires
F7: =F5 - 'Bureau Direction'!L4 -> 50 | G7: =IF(F7>0,"employés à engager","employés à licencier") -> employés à engager
A9: Tableau pour d'autres calculs
B19: Matière achetée | D19: publicité unitaire | K19: 1 | L19: 4
A20: Publicité | B20: ='Bureau Direction'!O5 -> 0 | C20: x | D20: =VLOOKUP(L19,K20:L25,2) -> 20 | E20: = | F20: =B20*VLOOKUP(L19,K20:L25,2) -> 0 | G20: .- pour la publicité | K20: 1 | L20: 0
K21: 2 | L21: 5
K22: 3 | L22: 10
K23: 4 | L23: 20
K24: 5 | L24: 30
K25: 6 | L25: 40

Sheet Synthèse
A1: Smak-money, feuille de route
A3: Entreprise no : | B3: 1 | I3: Résultat global | K3: Cash flow * | M3: =SUM(B27:M27) -> 0
K4: Ordi. vendus : | M4: =SUM(B26:M26) -> 0
A5: Date : | B5: Heure de début et fin de partie : | L5: *sans les intérêts de : | N5: =ROUND(VLOOKUP($B$3,Datavar,24),0) -> 0 | R5: 0
A6: Température : | R6: 1
B7: 1er janvier | C7: 1er février | D7: 1er mars | E7: 1er avril | F7: 1er mai | G7: 1er juin | H7: 1er juillet | I7: 1er août | J7: 1er sept. | K7: 1er octobre | L7: 1er nov. | M7: 1er déc. | N7: Prochain mois | R7: 2
A8: Situation de départ | R8: 3
A9: Cash | R9: 4
A10: Nombre d'ouvriers | R10: 0
A11: Productivité
A12: Stock matière
A13: Stock ordinateurs
A14: Total recherche
A15: Marché potentiel
A17: Saisie
A18: Ouvriers à engager
A19: Matière à acheter | N19: Total
A20: Publicité | N20: =SUM(B20:M20) -> 0
A21: Recherche et dév. | N21: =SUM(B21:M21) -> 0
A22: Placements | N22: =SUM(B22:M22) -> 0
A23: Prix de vente
A25: Résultat
A26: Ventes du mois
A27: Bénéfice du mois
A28: Prix de revient unitaire
A29: Variation en %
A30: Prix salaire / matière
A32: Evénements
